bitfinex/quotes_SOLUSD_20251119
["timestamp","ask_amount","ask_price","bid_price","bid_amount"]
[1763545184935,0.1,139.87,139.86,32.87744722]
[1763545187012,0.77,139.87,139.86,32.87744722]
[1763545188124,0.1,139.87,139.86,32.87744722]
[1763545189700,0.81,139.87,139.86,32.87744722]
[1763545190096,0.81,139.87,139.86,34.57744722]
[1763545193016,0.1,139.87,139.86,34.57744722]
[1763545193321,0.81,139.87,139.86,34.57744722]
[1763545193770,0.81,139.87,139.86,2.86625344]
[1763545193903,0.81,139.87,139.84,2.10140609]
[1763545194224,0.81,139.87,139.84,2.86666427]
[1763545194408,0.81,139.87,139.83,3.80140609]
[1763545194593,0.81,139.87,139.83,15.69163987]
[1763545195011,0.81,139.87,139.83,3.80140609]
[1763545195217,0.81,139.87,139.83,6.66827582]
[1763545196413,0.81,139.87,139.84,2.10140609]
[1763545196806,0.81,139.87,139.84,3.2803442]
[1763545198212,0.81,139.87,139.83,7.84721393]
[1763545200629,0.81,139.87,139.85,3.2803442]
[1763545201331,0.81,139.87,139.83,4.56686973]
[1763545201529,0.81,139.87,139.83,6.14721393]
[1763545201834,4.0903442,139.87,139.83,2.86686973]
[1763545202042,0.81,139.87,139.81,4.9803442]
[1763545202215,3.9903442,139.86,139.81,4.9803442]
[1763545202409,0.71,139.85,139.8,27.90978769]
[1763545202636,3.9903442,139.85,139.8,32.89013189]
[1763545202809,3.9903442,139.85,139.8,29.60978769]
[1763545203016,0.71,139.84,139.8,29.60978769]
[1763545203434,0.71,139.84,139.8,32.89013189]
[1763545204023,0.71,139.84,139.81,3.2803442]
[1763545204235,0.71,139.84,139.82,3.2803442]
[1763545205026,0.71,139.84,139.83,3.2803442]
[1763545205239,0.71,139.84,139.82,3.2803442]
[1763545207351,0.71,139.85,139.83,3.2803442]
[1763545207520,0.71,139.85,139.84,3.2803442]
[1763545208037,0.71,139.85,139.83,3.2803442]
[1763545211840,0.71,139.85,139.82,6.14721393]
[1763545212840,0.71,139.85,139.8,9.78882769]
[1763545212841,0.71,139.85,139.8,14.76917189]
[1763545213024,0.71,139.85,139.8,18.14951609]
[1763545213224,3.9903442,139.85,139.8,18.14951609]
[1763545213756,0.71,139.84,139.8,18.14951609]
[1763545214454,0.71,139.84,139.8,14.86917189]
[1763545214632,0.71,139.84,139.73,0.71566592]
[1763545214633,3.9903442,139.84,139.78,4.9803442]
[1763545214839,3.9903442,139.84,139.78,8.2606884]
[1763545215040,0.71,139.83,139.78,8.2606884]
[1763545215552,3.9903442,139.83,139.78,4.9803442]
[1763545215749,3.2803442,139.83,139.77,13.06917189]
[1763545215934,0.71,139.82,139.77,31.29013189]
[1763545217335,0.71,139.82,139.77,28.00978769]
[1763545217526,0.71,139.82,139.77,31.29013189]
[1763545217722,0.71,139.82,139.77,21.5013042]
[1763545217927,0.71,139.82,139.77,3.2803442]
[1763545218539,0.71,139.82,139.78,3.2803442]
[1763545221227,0.69,139.82,139.81,3.2803442]
[1763545221852,0.69,139.82,139.8,3.2803442]
[1763545223832,0.69,139.82,139.79,23.1013042]
[1763545224031,0.69,139.82,139.79,4.9803442]
[1763545224230,0.69,139.82,139.78,23.1013042]
[1763545224541,0.69,139.82,139.77,3.2803442]
[1763545224729,0.69,139.82,139.77,21.4013042]
[1763545225240,0.69,139.82,139.78,3.2803442]
[1763545225640,0.69,139.82,139.79,3.2803442]
[1763545225837,0.69,139.82,139.8,3.2803442]
[1763545226533,0.7,139.82,139.81,3.2803442]
[1763545226749,0.7,139.82,139.8,9.78882769]
[1763545228055,0.7,139.82,139.79,26.3816484]
[1763545228056,0.7,139.82,139.79,1.7]
[1763545228359,0.7,139.82,139.79,19.82096]
[1763545228559,0.7,139.82,139.79,23.1013042]
[1763545230452,0.7,139.82,139.79,19.82096]
[1763545230657,0.7,139.82,139.79,1.7]
[1763545232749,0.7,139.82,139.79,4.9803442]
[1763545233163,3.2803442,139.81,139.76,3.2803442]
[1763545233368,3.2803442,139.81,139.77,18.12096]
[1763545233565,3.2803442,139.81,139.75,32.89013189]
[1763545233566,0.7,139.8,139.75,14.76917189]
[1763545233862,0.7,139.8,139.76,3.2803442]
[1763545234273,3.9803442,139.8,139.76,3.2803442]
[1763545234741,0.7,139.79,139.76,3.2803442]
[1763545235871,0.7,139.79,139.76,6.5606884]
[1763545236566,0.7,139.79,139.76,3.2803442]
[1763545236743,0.7,139.79,139.75,11.48882769]
[1763545237566,0.7,139.79,139.75,14.76917189]
[1763545239143,0.7,139.79,139.75,11.48882769]
[1763545239348,0.7,139.79,139.75,14.76917189]
[1763545240163,0.7,139.79,139.76,9.78882769]
[1763545242847,0.7,139.79,139.72,11.68882769]
[1763545242848,3.2803442,139.77,139.72,11.68882769]
[1763545243261,0.7,139.76,139.72,14.96917189]
[1763545243576,0.7,139.76,139.74,9.78882769]
[1763545245369,0.7,139.76,139.72,6.68430011]
[1763545245576,0.7,139.76,139.73,3.2803442]
[1763545245780,0.7,139.76,139.74,9.78882769]
[1763545247462,0.7,139.76,139.74,13.06917189]
[1763545247951,0.7,139.78,139.74,13.06917189]
[1763545248154,0.7,139.78,139.74,14.76917189]
[1763545250062,0.7,139.78,139.75,3.2803442]
[1763545250465,0.7,139.78,139.76,3.2803442]
[1763545251087,0.7,139.78,139.77,3.2803442]
[1763545251980,3.2803442,139.83,139.77,3.2803442]
[1763545252187,0.72,139.82,139.8,3.2803442]
[1763545252373,0.72,139.82,139.81,3.2803442]
[1763545255773,0.72,139.82,139.8,3.2803442]
[1763545256989,0.72,139.82,139.79,11.48882769]
[1763545257178,0.72,139.82,139.8,3.2803442]
[1763545258791,0.72,139.82,139.8,2.10067867]
[1763545258995,0.72,139.82,139.79,11.48882769]
[1763545259177,0.72,139.82,139.8,2.10067867]
[1763545260970,0.72,139.82,139.79,11.48882769]
[1763545261325,0.72,139.82,139.78,9.78882769]
[1763545261488,0.72,139.82,139.79,2.10067867]
[1763545262781,0.72,139.82,139.8,2.10067867]
[1763545264802,0.72,139.82,139.78,11.88950636]
[1763545265005,2.82067867,139.82,139.74,11.48882769]
[1763545265205,2.82067867,139.82,139.76,2.10067867]
[1763545265387,0.72,139.81,139.76,2.10067867]
[1763545265583,0.72,139.81,139.77,2.10067867]
[1763545268212,0.72,139.81,139.74,11.48882769]
[1763545268389,2.82067867,139.81,139.76,2.10067867]
[1763545268792,0.72,139.8,139.76,2.10067867]
[1763545269302,0.72,139.8,139.75,2.10067867]
[1763545271686,0.72,139.8,139.76,2.10067867]
[1763545275931,0.72,139.8,139.77,2.10067867]
[1763545278709,0.72,139.8,139.78,2.10067867]
[1763545279215,0.72,139.8,139.79,2.10067867]
[1763545279915,0.72,139.8,139.78,2.10067867]
[1763545281003,0.72,139.8,139.77,2.10067867]
[1763545281396,0.72,139.8,139.78,2.10067867]
[1763545288702,0.72,139.8,139.77,2.10067867]
[1763545288907,0.72,139.8,139.77,9.78882769]
[1763545289202,0.72,139.8,139.75,2.10067867]
[1763545289405,0.72,139.8,139.75,9.78882769]
[1763545289406,2.82067867,139.8,139.75,9.78882769]
[1763545289798,0.71,139.79,139.75,11.88950636]
[1763545289999,18.83096,139.79,139.74,2.10067867]
[1763545290211,20.93163867,139.79,139.74,9.78882769]
[1763545290414,0.71,139.78,139.74,9.78882769]
[1763545290627,0.71,139.78,139.74,11.88950636]
[1763545292723,0.71,139.78,139.74,9.78882769]
[1763545293027,0.71,139.78,139.74,11.88950636]
[1763545295822,0.71,139.78,139.74,2.10067867]
[1763545296215,0.71,139.78,139.73,2.10067867]
[1763545296728,18.12096,139.77,139.72,2.30067867]
[1763545297110,0.67,139.76,139.72,0.2]
[1763545297909,0.67,139.76,139.72,2.30067867]
[1763545298319,0.67,139.77,139.74,2.10067867]
[1763545298533,0.67,139.77,139.75,2.10067867]
[1763545299934,0.67,139.77,139.74,2.10067867]
[1763545300130,0.67,139.77,139.75,2.10067867]
[1763545304441,18.12096,139.82,139.73,9.78882769]
[1763545304641,21.69202501,139.9,139.73,9.78882769]
[1763545304642,0.67,139.83,139.81,2.10067867]
[1763545304846,0.67,139.86,139.8,18.12096]
[1763545305340,0.67,139.86,139.81,2.10067867]
[1763545305639,0.67,139.86,139.82,2.10067867]
[1763545305840,2.77067867,139.86,139.81,2.10067867]
[1763545306235,0.67,139.85,139.81,2.10067867]
[1763545307547,0.67,139.85,139.83,2.10067867]
[1763545308616,0.1,139.87,139.84,11.88950636]
[1763545308827,0.77,139.87,139.86,2.10067867]
[1763545309030,0.1,139.87,139.86,2.10067867]
[1763545310037,0.81,139.87,139.86,2.10067867]
[1763545312255,0.81,139.87,139.82,1.7]
[1763545312428,0.81,139.87,139.79,18.12096]
[1763545312742,0.81,139.87,139.8,9.78882769]
[1763545312948,0.81,139.87,139.82,2.10067867]
[1763545313128,0.81,139.87,139.83,2.10067867]
[1763545313634,0.81,139.87,139.84,2.10067867]
[1763545318950,0.81,139.87,139.84,3.28067727]
[1763545319134,0.81,139.87,139.83,3.28067727]
[1763545319959,4.09067727,139.87,139.82,3.28067727]
[1763545320137,4.09067727,139.87,139.81,3.28067727]
[1763545320335,0.71,139.86,139.81,3.28067727]
[1763545320950,0.71,139.86,139.72,0.2]
[1763545320951,3.28067727,139.85,139.72,0.2]
[1763545321146,3.28067727,139.85,139.8,3.28067727]
[1763545321452,0.71,139.84,139.79,3.28067727]
[1763545321636,3.99067727,139.84,139.79,3.28067727]
[1763545321838,3.99067727,139.84,139.78,3.28067727]
[1763545322044,0.71,139.83,139.78,3.28067727]
[1763545322428,3.99067727,139.83,139.74,9.78882769]
[1763545322654,18.12096,139.81,139.76,3.28067727]
[1763545322844,3.28067727,139.82,139.77,3.28067727]
[1763545322845,3.99067727,139.82,139.77,3.28067727]
[1763545323052,0.71,139.81,139.77,3.28067727]
[1763545323557,0.71,139.81,139.78,3.28067727]
[1763545323748,1.7,139.82,139.79,3.28067727]
[1763545323940,0.71,139.83,139.8,3.28067727]
[1763545324141,0.71,139.83,139.81,3.28067727]
[1763545326039,0.71,139.83,139.77,11.48882769]
[1763545326363,0.71,139.83,139.8,3.28067727]
[1763545327559,0.71,139.84,139.82,3.28067727]
[1763545327748,1.7,139.86,139.82,3.28067727]
[1763545327749,0.71,139.83,139.82,3.28067727]
[1763545328067,2.41,139.86,139.82,3.28067727]
[1763545328262,0.71,139.85,139.83,3.28067727]
[1763545328764,0.71,139.85,139.84,3.28067727]
[1763545329142,0.81,139.87,139.84,3.28067727]
[1763545329959,0.81,139.87,139.85,3.28067727]
[1763545330352,0.81,139.87,139.86,3.28067727]
[1763545331241,0.81,139.87,139.82,9.78882769]
[1763545331242,0.81,139.87,139.85,3.28067727]
[1763545332762,0.1,139.87,139.86,3.28067727]
[1763545332948,0.81,139.87,139.85,3.28067727]
[1763545333262,0.81,139.87,139.84,3.28067727]
[1763545333437,0.81,139.87,139.85,3.28067727]
[1763545333868,0.81,139.87,139.84,3.28067727]
[1763545337158,0.81,139.87,139.85,3.28067727]
[1763545338671,0.81,139.87,139.86,13.06950496]
[1763545338672,0.1,139.87,139.86,13.06950496]
[1763545340773,0.77,139.87,139.84,3.28067727]
[1763545340977,0.77,139.87,139.83,13.06950496]
[1763545341153,0.77,139.87,139.84,3.28067727]
[1763545341656,0.77,139.87,139.83,3.28067727]
[1763545342257,0.77,139.87,139.82,9.78882769]
[1763545342258,0.77,139.87,139.84,3.28067727]
[1763545342460,0.77,139.87,139.83,3.28067727]
[1763545343052,0.77,139.87,139.82,13.06950496]
[1763545343053,4.05067727,139.87,139.82,13.06950496]
[1763545343373,4.05067727,139.87,139.79,1.7]
[1763545343374,3.28067727,139.86,139.81,9.78882769]
[1763545343573,3.99067727,139.86,139.81,13.06950496]
[1763545343908,0.71,139.86,139.83,3.28067727]
[1763545344182,0.71,139.85,139.83,3.28067727]
[1763545344554,0.71,139.85,139.78,9.78882769]
[1763545344781,0.71,139.85,139.82,3.28067727]
[1763545345973,0.71,139.85,139.81,9.78882769]
[1763545346173,0.71,139.85,139.81,13.06950496]
[1763545347472,3.99067727,139.85,139.76,3.38067727]
[1763545347677,3.28067727,139.84,139.78,3.28067727]
[1763545347884,3.28067727,139.81,139.76,9.78882769]
[1763545348264,3.28067727,139.79,139.73,3.28067727]
[1763545348478,3.28067727,139.79,139.74,9.78882769]
[1763545348663,0.71,139.78,139.74,9.78882769]
[1763545348858,0.71,139.78,139.72,0.2]
[1763545349081,3.99067727,139.78,139.73,9.78882769]
[1763545349581,3.99067727,139.78,139.72,0.2]
[1763545349582,3.28067727,139.76,139.72,0.2]
[1763545349784,0.71,139.77,139.72,0.2]
[1763545349785,3.28067727,139.75,139.72,0.2]
[1763545349966,0.71,139.74,139.72,0.2]
[1763545352087,0.71,139.77,139.73,3.28067727]
[1763545352380,0.71,139.77,139.74,3.28067727]
[1763545352889,1.7,139.8,139.76,3.28067727]
[1763545353185,0.71,139.79,139.76,3.28067727]
[1763545353568,0.71,139.79,139.77,9.78882769]
[1763545353877,0.71,139.79,139.77,3.28067727]
[1763545355869,0.71,139.79,139.72,0.2]
[1763545356077,0.71,139.79,139.75,3.28067727]
[1763545356481,0.71,139.79,139.76,3.28067727]
[1763545357566,1.7,139.8,139.77,3.28067727]
[1763545357981,2.41,139.8,139.77,3.28067727]
[1763545358187,0.71,139.79,139.77,3.28067727]
[1763545359273,0.71,139.79,139.76,3.28067727]
[1763545359494,0.71,139.79,139.77,3.28067727]
[1763545361265,0.71,139.79,139.73,27.90978769]
[1763545361462,0.71,139.79,139.76,3.28067727]
[1763545361670,0.71,139.79,139.74,13.06950496]
[1763545362194,0.71,139.82,139.78,3.28067727]
[1763545362385,0.71,139.82,139.79,3.28067727]
[1763545362386,18.83096,139.82,139.79,3.28067727]
[1763545362568,18.83096,139.82,139.75,11.48882769]
[1763545362569,18.83096,139.82,139.78,3.28067727]
[1763545362775,0.71,139.81,139.78,3.28067727]
[1763545363279,0.71,139.81,139.75,1.7]
[1763545363479,0.71,139.81,139.78,3.28067727]
[1763545363898,0.71,139.81,139.74,9.78882769]
[1763545364080,3.28067727,139.79,139.72,9.98882769]
[1763545364290,0.71,139.78,139.74,3.28067727]
[1763545364901,0.71,139.78,139.74,9.78882769]
[1763545366196,0.71,139.78,139.74,13.06950496]
[1763545367073,0.71,139.78,139.75,3.28067727]
[1763545367582,0.71,139.78,139.74,3.28067727]
[1763545368296,0.71,139.78,139.75,3.28067727]
[1763545370409,2.39,139.8,139.76,3.28067727]
[1763545370710,0.69,139.78,139.76,3.28067727]
[1763545371003,2.39,139.8,139.77,3.28067727]
[1763545371386,2.39,139.8,139.78,3.28067727]
[1763545372474,0.69,139.79,139.77,3.28067727]
[1763545379101,0.69,139.79,139.78,3.28067727]
[1763545379313,0.69,139.82,139.78,3.28067727]
[1763545379485,0.69,139.82,139.79,3.28067727]
[1763545380814,0.69,139.82,139.79,2.10098689]
[1763545381508,0.69,139.82,139.77,9.78882769]
[1763545381802,0.69,139.82,139.79,2.10098689]
[1763545382186,0.1,139.87,139.81,11.88981458]
[1763545382187,0.69,139.85,139.81,11.88981458]
[1763545382391,0.69,139.85,139.82,2.10098689]
[1763545382594,0.69,139.85,139.83,2.10098689]
[1763545382798,0.69,139.85,139.82,2.10098689]
[1763545383386,0.69,139.85,139.75,2.86748628]
[1763545383387,2.79098689,139.85,139.75,2.86748628]
[1763545383597,2.79098689,139.85,139.73,0.71566592]
[1763545383598,2.10098689,139.83,139.79,9.78882769]
[1763545383911,2.79098689,139.84,139.79,11.88981458]
[1763545384082,2.10098689,139.84,139.79,11.88981458]
[1763545384283,0.69,139.83,139.79,11.88981458]
[1763545385600,0.69,139.83,139.8,2.10098689]
[1763545385799,0.69,139.84,139.81,11.88981458]
[1763545386001,0.69,139.84,139.82,2.10098689]
[1763545386800,0.69,139.84,139.81,2.10098689]
[1763545387389,0.69,139.84,139.81,9.78882769]
[1763545388008,0.69,139.84,139.73,9.78882769]
[1763545388186,2.10098689,139.8,139.72,0.2]
[1763545388386,2.10098689,139.76,139.72,0.2]
[1763545388892,0.69,139.75,139.72,9.98882769]
[1763545389094,0.69,139.75,139.72,0.2]
[1763545389393,0.69,139.75,139.72,2.30098689]
[1763545389892,18.12096,139.8,139.72,2.30098689]
[1763545389893,0.69,139.78,139.74,2.10098689]
[1763545390094,18.12096,139.8,139.74,2.10098689]
[1763545390095,2.79098689,139.79,139.74,2.10098689]
[1763545390310,0.69,139.79,139.74,2.10098689]
[1763545390616,0.69,139.78,139.74,2.10098689]
[1763545391407,0.69,139.78,139.75,2.10098689]
[1763545391804,0.69,139.78,139.72,11.68882769]
[1763545392118,0.69,139.78,139.74,2.10098689]
[1763545392697,0.69,139.78,139.75,11.88981458]
[1763545393101,0.69,139.78,139.75,9.78882769]
[1763545394215,0.69,139.78,139.75,11.88981458]
[1763545394394,0.69,139.78,139.73,9.78882769]
[1763545394595,0.69,139.78,139.74,2.10098689]
[1763545395507,0.69,139.78,139.75,2.10098689]
[1763545397600,0.69,139.78,139.74,2.10098689]
[1763545398715,0.69,139.78,139.75,2.10098689]
[1763545399111,0.69,139.78,139.73,9.78882769]
[1763545399112,0.69,139.78,139.74,2.10098689]
[1763545400130,2.79098689,139.78,139.73,2.10098689]
[1763545400622,2.79098689,139.78,139.72,0.2]
[1763545400623,0.67,139.77,139.72,0.2]
[1763545400813,2.10098689,139.75,139.72,0.2]
[1763545401011,20.22194689,139.75,139.72,0.2]
[1763545401320,2.10098689,139.73,139.68,9.78882769]
[1763545401728,2.77098689,139.72,139.67,0.2]
[1763545402019,2.10098689,139.71,139.67,9.98882769]
[1763545402204,2.77098689,139.71,139.67,9.98882769]
[1763545402400,0.67,139.7,139.67,9.98882769]
[1763545408512,0.67,139.7,139.67,0.2]
[1763545409514,0.67,139.7,139.67,2.30098689]
[1763545419640,0.67,139.7,139.67,0.2]
[1763545420333,0.67,139.7,139.67,2.30098689]
[1763545422138,18.12096,139.75,139.67,2.30098689]
[1763545422328,18.12096,139.75,139.69,2.10098689]
[1763545422329,1.7,139.74,139.69,2.10098689]
[1763545422524,4.47098689,139.74,139.69,2.10098689]
[1763545422837,0.67,139.73,139.7,2.10098689]
[1763545423345,0.67,139.73,139.68,0.2]
[1763545423346,1.7,139.74,139.72,2.10098689]
[1763545423528,1.7,139.74,139.71,2.10098689]
[1763545423727,2.37,139.74,139.69,9.98882769]
[1763545423944,2.37,139.74,139.71,2.10098689]
[1763545424121,1.7,139.74,139.71,2.10098689]
[1763545424320,2.37,139.74,139.71,2.10098689]
[1763545424738,2.37,139.74,139.72,2.10098689]
[1763545425330,0.67,139.73,139.7,0.2]
[1763545425644,0.67,139.73,139.72,2.10098689]
[1763545426549,2.37,139.74,139.72,2.10098689]
[1763545427337,1.7,139.74,139.72,2.10098689]
[1763545428353,2.37,139.74,139.72,2.10098689]
[1763545428731,1.7,139.74,139.72,2.10098689]
[1763545428996,0.67,139.73,139.67,0.4]
[1763545429157,0.67,139.73,139.69,2.10098689]
[1763545429459,2.77098689,139.73,139.68,2.10098689]
[1763545429825,0.67,139.72,139.68,2.10098689]
[1763545430026,0.67,139.72,139.69,2.10098689]
[1763545431927,0.67,139.72,139.68,2.10098689]
[1763545433964,0.67,139.72,139.69,2.10098689]
[1763545434586,0.67,139.72,139.7,2.10098689]
[1763545434954,0.67,139.72,139.69,2.10098689]
[1763545435154,0.67,139.72,139.69,9.78882769]
[1763545436084,0.67,139.72,139.69,11.88981458]
[1763545436249,0.67,139.72,139.67,0.4]
[1763545436456,0.67,139.72,139.68,11.88981458]
[1763545436982,0.67,139.72,139.67,0.2]
[1763545436983,2.10098689,139.7,139.67,0.2]
[1763545437367,0.67,139.69,139.67,0.2]
[1763545437750,2.77098689,139.69,139.67,0.2]
[1763545437956,2.10098689,139.68,139.67,0.2]
[1763545438153,2.77098689,139.68,139.67,0.2]
[1763545440381,0.67,139.68,139.67,0.2]
[1763545440555,2.77098689,139.68,139.67,0.2]
[1763545440750,3.96127374,139.68,139.67,0.2]
[1763545440956,22.08223374,139.68,139.67,0.2]
[1763545446576,3.96127374,139.68,139.67,0.2]
[1763545452402,0.67,139.68,139.67,0.2]
[1763545452701,1.7,139.68,139.67,0.2]
[1763545453794,2.37,139.68,139.67,0.2]
[1763545456799,1.7,139.68,139.67,0.2]
[1763545457382,2.37,139.68,139.67,0.2]
[1763545459072,5.66127374,139.68,139.67,0.2]
[1763545459273,2.37,139.68,139.67,0.2]
[1763545459988,1.7,139.68,139.67,0.2]
[1763545461399,0.68,139.7,139.67,0.2]
[1763545463282,3.97127374,139.7,139.67,0.2]
[1763545463800,0.7,139.69,139.67,0.2]
[1763545464589,2.4,139.71,139.67,0.2]
[1763545464789,0.7,139.7,139.67,0.2]
[1763545467000,1.7,139.71,139.67,0.4]
[1763545467304,2.4,139.71,139.67,0.4]
[1763545467489,2.4,139.71,139.67,3.69127374]
[1763545467684,1.7,139.71,139.67,3.69127374]
[1763545468006,2.4,139.71,139.68,3.29127374]
[1763545468397,1.7,139.71,139.68,3.29127374]
[1763545468584,2.4,139.71,139.67,9.98882769]
[1763545468791,2.4,139.71,139.68,3.29127374]
[1763545469296,1.7,139.71,139.68,3.49127374]
[1763545469709,2.4,139.71,139.68,3.29127374]
[1763545469904,2.4,139.71,139.68,3.49127374]
[1763545469905,1.7,139.71,139.68,3.49127374]
[1763545470492,2.4,139.71,139.68,3.29127374]
[1763545471290,1.7,139.71,139.68,3.49127374]
[1763545471498,2.4,139.71,139.68,3.29127374]
[1763545472992,2.4,139.71,139.67,10.18882769]
[1763545472993,1.7,139.71,139.69,3.49127374]
[1763545473193,1.7,139.71,139.69,3.29127374]
[1763545473505,1.7,139.71,139.69,3.49127374]
[1763545473995,1.7,139.71,139.69,3.29127374]
[1763545475519,1.7,139.71,139.69,3.49127374]
[1763545475716,1.7,139.71,139.7,3.29127374]
[1763545475914,5.9427228,139.79,139.7,3.49127374]
[1763545476120,0.7,139.75,139.72,3.29127374]
[1763545477319,21.53,139.89,139.68,13.08010143]
[1763545477320,0.7,139.78,139.73,0.2]
[1763545477604,3.99127374,139.78,139.73,3.29127374]
[1763545477922,3.99127374,139.77,139.72,3.29127374]
[1763545478229,0.7,139.77,139.72,3.29127374]
[1763545478428,0.7,139.76,139.72,3.29127374]
[1763545480299,0.7,139.76,139.7,9.78882769]
[1763545480630,3.29127374,139.75,139.7,13.08010143]
[1763545480928,3.29127374,139.75,139.69,18.12096]
[1763545480929,3.29127374,139.73,139.68,3.29127374]
[1763545481328,0.7,139.72,139.68,3.29127374]
[1763545482605,0.7,139.72,139.67,13.28010143]
[1763545483024,0.7,139.72,139.67,13.48010143]
[1763545483222,0.7,139.72,139.68,3.29127374]
[1763545484003,0.7,139.73,139.7,3.29127374]
[1763545484736,0.7,139.73,139.7,3.49127374]
[1763545485049,0.7,139.73,139.7,3.29127374]
[1763545485913,0.7,139.73,139.7,9.78882769]
[1763545486720,0.7,139.73,139.7,3.29127374]
[1763545488920,1.7,139.75,139.71,3.49127374]
[1763545489322,2.4,139.75,139.71,3.49127374]
[1763545489522,1.7,139.75,139.71,3.49127374]
[1763545489731,0.7,139.74,139.71,3.29127374]
[1763545490623,1.7,139.75,139.71,3.29127374]
[1763545490943,2.4,139.75,139.71,3.49127374]
[1763545491127,0.7,139.74,139.71,3.29127374]
[1763545493443,0.7,139.74,139.69,3.29127374]
[1763545493768,0.7,139.74,139.67,0.4]
[1763545493769,3.29127374,139.72,139.67,9.98882769]
[1763545494048,3.29127374,139.71,139.67,9.98882769]
[1763545494455,0.7,139.7,139.67,9.98882769]
[1763545495528,0.7,139.7,139.67,0.2]
[1763545500769,3.29127374,139.68,139.67,0.2]
[1763545501257,3.99127374,139.68,139.67,0.2]
[1763545501468,0.7,139.68,139.67,0.2]
[1763545502147,3.99127374,139.68,139.67,0.2]
[1763545502348,0.7,139.68,139.67,0.2]
[1763545503164,2.80569934,139.68,139.67,0.2]
[1763545503470,0.7,139.68,139.67,0.2]
[1763545504740,18.12096,139.7,139.67,0.2]
[1763545504939,0.7,139.69,139.67,0.2]
[1763545505548,21.92665934,139.71,139.67,0.4]
[1763545505770,0.7,139.7,139.67,0.2]
[1763545506269,1.7,139.71,139.67,2.30569934]
[1763545506562,2.4,139.71,139.67,2.50569934]
[1763545506744,1.7,139.71,139.68,2.30569934]
[1763545507338,0.7,139.7,139.67,9.98882769]
[1763545507556,2.4,139.71,139.67,12.29452703]
[1763545507767,2.4,139.71,139.68,2.10569934]
[1763545508745,0.7,139.7,139.67,2.30569934]
[1763545509477,2.10569934,139.68,139.67,0.2]
[1763545509962,2.80569934,139.68,139.67,0.2]
[1763545514049,4.50569934,139.68,139.67,0.2]
[1763545514261,22.62665934,139.68,139.67,0.2]
[1763545514461,4.50569934,139.68,139.67,0.2]
[1763545517776,1.7,139.68,139.67,0.2]
[1763545518279,2.4,139.68,139.67,0.2]
[1763545520382,1.7,139.68,139.67,0.2]
[1763545520575,2.38,139.68,139.67,0.2]
[1763545521355,1.7,139.68,139.67,0.2]
[1763545522180,2.38,139.68,139.67,0.2]
[1763545522379,4.48569934,139.68,139.67,0.2]
[1763545523380,2.38,139.68,139.67,0.2]
[1763545527282,1.7,139.68,139.67,0.2]
[1763545529363,1.7,139.68,139.67,0.4]
[1763545529566,2.82569934,139.73,139.67,2.50569934]
[1763545529888,1.7,139.72,139.68,2.30569934]
[1763545530081,1.7,139.72,139.7,2.10569934]
[1763545530471,1.7,139.72,139.7,2.30569934]
[1763545531064,1.7,139.72,139.7,2.10569934]
[1763545531469,0.72,139.76,139.71,2.30569934]
[1763545531688,1.7,139.75,139.71,2.10569934]
[1763545531887,3.80569934,139.75,139.7,2.30569934]
[1763545532076,3.80569934,139.75,139.7,2.10569934]
[1763545532077,0.72,139.74,139.7,2.10569934]
[1763545532273,0.72,139.74,139.7,2.30569934]
[1763545533087,1.7,139.75,139.71,2.30569934]
[1763545533276,2.42,139.75,139.71,2.30569934]